bitfinex/quotes_BTCUSD_20241021
["timestamp","ask_amount","ask_price","bid_price","bid_amount"]
[1729551745995,0.01676,67634.0,67633.0,0.147856]
[1729551746655,0.01576,67634.0,67633.0,0.147856]
[1729551747759,0.01576,67634.0,67630.0,0.25585377]
[1729551747981,0.01576,67634.0,67633.0,0.008]
[1729551747982,0.01676,67634.0,67633.0,0.008]
[1729551748473,0.01576,67634.0,67630.0,0.25585377]
[1729551748683,0.01576,67634.0,67633.0,0.00196165]
[1729551748892,0.01676,67634.0,67630.0,0.26385377]
[1729551749104,0.01676,67634.0,67633.0,0.00195093]
[1729551749316,0.01676,67634.0,67630.0,0.26385377]
[1729551749530,0.01576,67634.0,67633.0,0.01195093]
[1729551749744,0.01576,67634.0,67633.0,0.01]
[1729551749966,0.01676,67634.0,67633.0,0.01995093]
[1729551752251,0.164714,67634.0,67633.0,0.01995093]
[1729551752461,0.0630695,67634.0,67633.0,0.018]
[1729551752702,0.01676,67634.0,67633.0,0.01993776]
[1729551752915,0.00676,67634.0,67633.0,0.165856]
[1729551753405,0.00676,67634.0,67633.0,0.00993776]
[1729551753860,0.00676,67634.0,67633.0,0.30675291]
[1729551754083,0.00676,67634.0,67633.0,0.29875291]
[1729551754084,0.00576,67634.0,67633.0,0.29875291]
[1729551754326,0.00576,67634.0,67633.0,0.30775291]
[1729551754548,0.01276,67634.0,67633.0,0.29975291]
[1729551755013,0.00576,67634.0,67633.0,0.29958191]
[1729551755464,0.00676,67634.0,67633.0,0.30758191]
[1729551755927,0.00676,67634.0,67633.0,0.31558191]
[1729551756148,0.00676,67634.0,67633.0,0.30758191]
[1729551756573,0.00676,67634.0,67633.0,0.31758191]
[1729551756987,0.00676,67634.0,67633.0,1.01758191]
[1729551757663,0.00676,67634.0,67633.0,1.11758191]
[1729551757881,0.00676,67634.0,67633.0,1.12258191]
[1729551758093,0.00676,67634.0,67633.0,1.37843568]
[1729551758309,0.00676,67634.0,67633.0,1.45783568]
[1729551758755,0.00676,67634.0,67633.0,1.45973568]
[1729551758971,0.00576,67634.0,67633.0,1.45173568]
[1729551759702,0.00576,67634.0,67633.0,1.46573568]
[1729551759936,0.001676,67635.0,67634.0,0.264754]
[1729551760151,0.001676,67635.0,67634.0,1.11281315]
[1729551760377,0.001676,67635.0,67634.0,1.11367322]
[1729551761055,0.002676,67635.0,67634.0,1.12767322]
[1729551763133,0.002676,67635.0,67634.0,0.44167322]
[1729551763618,0.001676,67635.0,67634.0,0.44167322]
[1729551763843,0.002676,67635.0,67634.0,0.45567322]
[1729551764345,0.002676,67635.0,67634.0,0.62369569]
[1729551765471,0.002676,67635.0,67634.0,0.79171816]
[1729551765694,0.002676,67635.0,67634.0,0.62369569]
[1729551765920,0.002676,67635.0,67634.0,0.79361816]
[1729551766368,0.002676,67635.0,67634.0,1.48861816]
[1729551766609,0.002676,67635.0,67634.0,1.32559569]
[1729551766824,0.002676,67635.0,67634.0,1.49361816]
[1729551767044,0.002676,67635.0,67634.0,1.32559569]
[1729551767284,0.002676,67635.0,67634.0,1.49361816]
[1729551770449,0.002676,67635.0,67634.0,1.49171816]
[1729551770899,0.002676,67635.0,67634.0,1.49361816]
[1729551771817,0.001676,67635.0,67634.0,1.47961816]
[1729551772698,0.001676,67635.0,67634.0,1.44971816]
[1729551772915,0.001676,67635.0,67634.0,1.46371816]
[1729551773135,0.001676,67635.0,67634.0,1.46561816]
[1729551773575,0.001676,67635.0,67634.0,1.47961816]
[1729551773837,0.001676,67635.0,67634.0,1.47871816]
[1729551774734,0.001676,67635.0,67634.0,1.47961816]
[1729551776767,0.001676,67635.0,67634.0,1.47771816]
[1729551776982,0.001676,67635.0,67634.0,1.47961816]
[1729551777914,0.001676,67635.0,67634.0,1.30969569]
[1729551778836,0.001676,67635.0,67634.0,1.31052169]
[1729551779602,0.001676,67635.0,67634.0,1.02749922]
[1729551780310,0.001676,67635.0,67634.0,0.87964522]
[1729551780512,0.001676,67635.0,67634.0,0.16564522]
[1729551780754,0.001776,67635.0,67634.0,0.31749922]
[1729551780989,0.001776,67635.0,67634.0,0.02068607]
[1729551781237,0.001776,67635.0,67603.0,0.0764]
[1729551781238,0.0001,67623.0,67603.0,0.0764]
[1729551781458,0.0001,67623.0,67602.0,0.005]
[1729551781459,0.0001,67614.0,67602.0,0.295845]
[1729551782212,0.0001,67604.0,67592.0,0.22286473]
[1729551782446,0.0001,67598.0,67597.0,0.147935]
[1729551782670,0.0001,67602.0,67593.0,0.295888]
[1729551782899,0.0001,67598.0,67597.0,0.147935]
[1729551783340,0.0001,67599.0,67598.0,0.147933]
[1729551784543,0.04638345,67610.0,67599.0,0.295859]
[1729551784766,0.0001,67608.0,67607.0,0.147913]
[1729551785006,0.0001,67611.0,67607.0,0.295824]
[1729551785243,0.0001,67615.0,67610.0,0.16802247]
[1729551785464,0.0001,67615.0,67601.0,0.22203473]
[1729551785465,0.0001,67614.0,67613.0,0.31592147]
[1729551785919,0.0001,67610.0,67609.0,0.46383947]
[1729551786159,0.0001,67611.0,67610.0,0.147907]
[1729551786390,0.0071,67611.0,67610.0,0.147907]
[1729551787316,0.0001,67611.0,67610.0,0.148907]
[1729551787538,0.0001,67613.0,67612.0,0.147902]
[1729551787753,0.0001,67613.0,67610.0,0.148905]
[1729551787971,0.0001,67613.0,67611.0,0.147902]
[1729551788608,0.0001,67613.0,67609.0,0.46383947]
[1729551788850,0.0001,67613.0,67610.0,0.00195973]
[1729551789063,0.0001,67611.0,67610.0,0.00195973]
[1729551789315,0.0001,67611.0,67610.0,0.00295973]
[1729551789783,0.0001,67611.0,67610.0,0.00195973]
[1729551790201,0.0001,67611.0,67610.0,0.00278573]
[1729551790526,0.0001,67611.0,67610.0,0.00578573]
[1729551790747,0.0150994,67611.0,67610.0,0.00578573]
[1729551790968,0.0001,67611.0,67610.0,0.00578573]
[1729551792197,0.0001,67611.0,67610.0,0.00278573]
[1729551792642,0.0021,67611.0,67610.0,0.00278573]
[1729551792854,0.150004,67611.0,67610.0,0.00278573]
[1729551793076,0.148004,67611.0,67610.0,0.000826]
[1729551793746,0.2239638,67611.0,67610.0,0.000826]
[1729551793932,0.0021,67611.0,67610.0,0.000826]
[1729551794262,0.150004,67611.0,67610.0,0.00278573]
[1729551796201,0.150004,67611.0,67610.0,0.000826]
[1729551797064,0.150004,67611.0,67610.0,0.00278573]
[1729551798670,0.002,67611.0,67610.0,0.15069273]
[1729551798890,0.002,67611.0,67610.0,0.29965188]
[1729551799738,0.0001,67621.0,67618.0,0.147889]
[1729551799902,0.0001,67625.0,67620.0,0.147883]
[1729551800100,0.14788,67623.0,67619.0,0.14984523]
[1729551800306,0.0001,67625.0,67619.0,0.00195923]
[1729551800519,0.295746,67626.0,67619.0,0.00195923]
[1729551800520,0.0001,67620.0,67619.0,0.00195923]
[1729551800726,0.0001,67620.0,67619.0,0.147887]
[1729551800934,0.0001,67622.0,67619.0,0.00195923]
[1729551801140,0.14787,67627.0,67622.0,0.147879]
[1729551801345,0.0001,67628.0,67624.0,0.31589647]
[1729551801560,0.0001,67626.0,67625.0,0.147874]
[1729551801764,0.0001,67625.0,67624.0,0.31589747]
[1729551801964,0.295711,67634.0,67624.0,0.16802247]
[1729551801965,0.0001,67632.0,67624.0,0.16802247]
[1729551802164,0.295694,67638.0,67630.0,0.16802247]
[1729551802165,0.001776,67635.0,67630.0,0.16802247]
[1729551802391,0.001652,67633.0,67630.0,0.31588547]
[1729551802647,0.001652,67633.0,67630.0,0.46374847]
[1729551802851,0.001652,67633.0,67631.0,0.147861]
[1729551803283,0.001652,67633.0,67632.0,0.147859]
[1729551804970,0.002652,67633.0,67632.0,0.147859]
[1729551805194,0.002652,67633.0,67632.0,0.29681815]
[1729551805421,0.001652,67633.0,67632.0,0.29881815]
[1729551806274,0.001652,67633.0,67632.0,0.29681815]
[1729551806485,0.001652,67633.0,67632.0,0.147859]
[1729551806674,0.002652,67633.0,67632.0,0.156859]
[1729551807345,0.1657356,67633.0,67632.0,0.009]
[1729551807830,0.147874,67625.0,67620.0,0.147884]
[1729551808057,0.0168796,67633.0,67624.0,0.22203473]
[1729551808273,0.14798,67622.0,67621.0,0.00185679]
[1729551808511,0.0001,67618.0,67617.0,0.5379482]
[1729551808935,0.0001,67618.0,67617.0,0.53980499]
[1729551809168,0.0001,67618.0,67617.0,0.31777026]
[1729551811037,0.0001,67618.0,67617.0,0.00185679]
[1729551811300,0.1775752,67618.0,67617.0,0.004]
[1729551811992,0.1775752,67618.0,67608.0,0.22203473]
[1729551811993,0.148004,67611.0,67608.0,0.22203473]
[1729551812238,0.148004,67611.0,67610.0,0.00268279]
[1729551812468,0.0001,67611.0,67610.0,0.00268279]
[1729551812922,0.148004,67611.0,67610.0,0.00268279]
[1729551814059,0.0001,67612.0,67610.0,0.15058779]
[1729551814297,0.0001,67611.0,67610.0,0.00268279]
[1729551814506,0.0031,67611.0,67610.0,0.00268279]
[1729551815168,0.0051,67611.0,67610.0,0.00268279]
[1729551817862,0.005,67611.0,67610.0,0.15058979]
[1729551818676,0.0001,67621.0,67610.0,0.00268279]
[1729551818903,0.0001,67621.0,67615.0,0.295792]
[1729551819116,0.0001,67621.0,67617.0,0.14789]
[1729551819328,0.147983,67621.0,67617.0,0.14789]
[1729551819549,0.0001,67621.0,67618.0,0.0019377]
[1729551819764,0.0001,67621.0,67617.0,0.14789]
[1729551819987,0.0001,67621.0,67618.0,0.0019377]
[1729551820196,0.147881,67622.0,67617.0,0.147889]
[1729551820197,0.0001,67618.0,67617.0,0.147889]
[1729551820423,0.0001,67621.0,67617.0,0.39198651]
[1729551820650,0.0001,67618.0,67617.0,0.16995178]
[1729551820891,0.0001,67618.0,67617.0,0.68883666]
[1729551821166,0.24511656,67633.0,67617.0,0.68883666]
[1729551821167,0.0001,67628.0,67627.0,0.147869]
[1729551821393,0.0001,67628.0,67627.0,0.14979568]
[1729551822549,0.0071,67628.0,67627.0,0.15079568]
[1729551822749,0.007,67628.0,67627.0,0.29975483]
[1729551823479,0.007,67628.0,67627.0,0.30075483]
[1729551823932,0.001652,67633.0,67632.0,0.147859]
[1729551824147,0.001652,67633.0,67632.0,0.31588147]
[1729551824362,0.001652,67633.0,67632.0,0.31776571]
[1729551825972,0.002652,67633.0,67632.0,0.31776571]
[1729551827060,0.002752,67633.0,67632.0,0.16990671]
[1729551829692,0.002652,67633.0,67632.0,0.16990671]
[1729551830340,0.002652,67633.0,67632.0,0.31776571]
[1729551830575,0.002652,67633.0,67632.0,0.16990671]
[1729551833627,0.002652,67633.0,67632.0,0.31776571]
[1729551833866,0.002752,67633.0,67632.0,0.31776571]
[1729551834087,0.002652,67633.0,67632.0,0.31776571]
[1729551834321,0.002652,67633.0,67632.0,0.16990671]
[1729551834536,0.002752,67633.0,67632.0,0.31776571]
[1729551834751,0.001752,67633.0,67632.0,0.16990671]
[1729551834964,0.001752,67633.0,67632.0,0.31776571]
[1729551835193,0.001752,67633.0,67632.0,0.16990671]
[1729551835668,0.002752,67633.0,67632.0,0.16990671]
[1729551836384,0.002752,67633.0,67632.0,0.17090671]
[1729551836843,0.001752,67633.0,67632.0,0.17173271]
[1729551837299,0.001752,67633.0,67632.0,0.17473271]
[1729551837518,0.001652,67633.0,67632.0,0.17473271]
[1729551840441,0.001652,67633.0,67632.0,0.47155086]
[1729551841359,0.001652,67633.0,67632.0,0.59235086]
[1729551843479,0.001652,67633.0,67632.0,0.77195086]
[1729551843719,0.001652,67633.0,67632.0,0.76895086]
[1729551843935,0.002652,67633.0,67632.0,0.78395086]
[1729551844361,0.002652,67633.0,67632.0,0.78295086]
[1729551844578,0.002652,67633.0,67632.0,0.95097333]
[1729551844808,0.002652,67633.0,67632.0,0.80268749]
[1729551852460,0.002652,67633.0,67632.0,0.12971024]
[1729551852677,0.150508,67633.0,67632.0,0.02971024]
[1729551852908,0.150608,67633.0,67632.0,0.027826]
[1729551853163,0.1954072,67633.0,67632.0,0.027826]
[1729551853382,0.38542967,67633.0,67632.0,0.000826]
[1729551853602,0.38542967,67633.0,67632.0,0.001826]
[1729551854040,0.2174072,67633.0,67632.0,0.001826]
[1729551854488,0.2174072,67633.0,67632.0,0.000826]
[1729551854699,0.2204072,67633.0,67632.0,0.000826]
[1729551855154,0.2340072,67633.0,67632.0,0.000826]
[1729551855370,0.55098882,67633.0,67632.0,0.000826]
[1729551856297,0.54798882,67633.0,67632.0,0.000826]
[1729551856524,0.54798882,67633.0,67632.0,0.001826]
[1729551856525,0.38096635,67633.0,67632.0,0.001826]
[1729551856752,0.38796635,67633.0,67632.0,0.002826]
[1729551857199,0.38696635,67633.0,67632.0,0.001826]
[1729551857668,0.38796635,67633.0,67632.0,0.002826]
[1729551857940,0.38096635,67633.0,67632.0,0.001826]
[1729551858157,0.39370141,67633.0,67632.0,0.000826]
[1729551858390,0.38996635,67633.0,67632.0,0.001826]
[1729551859319,0.192608,67633.0,67632.0,0.002826]
[1729551865762,0.147862,67631.0,67625.0,0.21986073]
[1729551866255,0.0001,67627.0,67626.0,0.00184686]
[1729551867344,0.0001,67627.0,67625.0,0.002]
[1729551867558,0.0001,67627.0,67626.0,0.00184686]
[1729551867972,0.0041,67627.0,67626.0,0.00184686]
[1729551868865,0.0001,67624.0,67623.0,0.147877]
[1729551870216,0.0021,67624.0,67623.0,0.147877]
[1729551871354,0.0001,67624.0,67623.0,0.147877]
[1729551872205,0.0011,67624.0,67623.0,0.147877]
[1729551872424,0.001,67624.0,67623.0,0.228677]
[1729551872916,0.001,67624.0,67623.0,0.229677]
[1729551873350,0.0001,67631.0,67630.0,0.147863]
[1729551873573,0.0001,67631.0,67623.0,0.0818]
[1729551873574,0.001652,67633.0,67632.0,0.147859]
[1729551873793,0.001652,67633.0,67632.0,0.31588147]
[1729551874246,0.001652,67633.0,67632.0,0.46484062]
[1729551875323,0.001652,67633.0,67630.0,0.005]
[1729551875324,0.001652,67633.0,67630.0,0.152862]
[1729551875543,0.001652,67633.0,67630.0,0.005]
[1729551875755,0.0001,67632.0,67631.0,0.14786]
[1729551875968,0.0001,67631.0,67630.0,0.005]
[1729551876202,0.0001,67631.0,67630.0,0.152863]
[1729551876440,0.0001,67632.0,67631.0,0.147861]
[1729551876678,0.003652,67633.0,67632.0,0.004]
[1729551876893,0.003652,67633.0,67631.0,0.147861]
[1729551876894,0.0001,67632.0,67631.0,0.147861]
[1729551877560,0.003652,67633.0,67632.0,0.147859]
[1729551878000,0.002652,67633.0,67632.0,0.147859]
[1729551878422,0.001652,67633.0,67632.0,0.147859]
[1729551879302,0.001652,67633.0,67632.0,0.149859]
[1729551880162,0.001652,67633.0,67632.0,0.52085288]
[1729551880371,0.001652,67633.0,67632.0,0.30281815]
[1729551884062,0.001652,67633.0,67632.0,0.30467638]
[1729551884516,0.001652,67633.0,67632.0,0.48707638]
[1729551884974,0.001652,67633.0,67632.0,0.65509885]
[1729551885420,0.001652,67633.0,67632.0,0.65309885]
[1729551885627,0.001652,67633.0,67632.0,0.65509885]
[1729551886110,0.001652,67633.0,67632.0,0.65309885]
[1729551886537,0.002652,67633.0,67632.0,0.66109885]
[1729551886751,0.002652,67633.0,67632.0,0.65709885]
[1729551887205,0.003652,67633.0,67632.0,0.66709885]
[1729551887431,0.002652,67633.0,67632.0,0.65709885]
[1729551887655,0.003652,67633.0,67632.0,0.66709885]
[1729551890257,0.003652,67633.0,67632.0,0.35011723]
[1729551890503,0.003652,67633.0,67632.0,0.26771723]
[1729551894488,0.003752,67633.0,67632.0,0.26771723]
[1729551894713,0.003652,67633.0,67632.0,0.26771723]
[1729551900627,0.00347402,67633.0,67632.0,0.26771723]
[1729551902940,0.00347402,67633.0,67632.0,0.41667638]
[1729551905818,0.00547402,67633.0,67632.0,0.42330453]
[1729551909379,0.00547402,67633.0,67632.0,0.53913524]
[1729551909619,0.001676,67635.0,67634.0,0.37368471]
[1729551909848,0.001676,67635.0,67634.0,0.40681315]
[1729551910076,0.001676,67635.0,67634.0,0.40865086]
[1729551910306,0.001676,67635.0,67634.0,0.57667414]
[1729551911449,0.001676,67635.0,67634.0,0.58867414]
[1729551912546,0.001676,67635.0,67634.0,0.60267414]
[1729551912767,0.001676,67635.0,67634.0,0.58867414]
[1729551912987,0.001676,67635.0,67634.0,0.57667414]
[1729551913255,0.001676,67635.0,67634.0,0.60267414]
[1729551913703,0.001676,67635.0,67634.0,0.59257414]
[1729551914156,0.001676,67635.0,67634.0,0.60457414]
[1729551914371,0.001676,67635.0,67634.0,0.59057414]
[1729551914631,0.001676,67635.0,67634.0,0.57857414]
[1729551914850,0.001676,67635.0,67634.0,0.59057414]
[1729551915723,0.001676,67635.0,67634.0,0.60457414]
[1729551916380,0.001676,67635.0,67634.0,0.59257414]
[1729551916626,0.001676,67635.0,67634.0,0.58957414]
[1729551916841,0.001676,67635.0,67634.0,0.60257414]
[1729551922286,0.001676,67635.0,67634.0,0.57857414]
[1729551922714,0.001676,67635.0,67634.0,0.59057414]
[1729551923625,0.001676,67635.0,67634.0,0.60457414]
[1729551924059,0.001676,67635.0,67634.0,0.60451143]
[1729551927164,0.001676,67635.0,67634.0,0.42465086]
[1729551927416,0.149628,67635.0,67634.0,0.02783771]
[1729551927647,0.19436,67635.0,67634.0,0.02783771]
[1729551928096,0.19436,67635.0,67634.0,0.026]
[1729551928330,0.19436,67635.0,67634.0,0.00171686]
[1729551928598,0.147954,67634.0,67633.0,0.000826]
[1729551929053,0.147954,67634.0,67633.0,0.00254286]
[1729551929277,0.0001,67634.0,67633.0,0.00254286]
[1729551929737,0.147954,67634.0,67633.0,0.00254286]
[1729551929948,0.147954,67634.0,67633.0,0.003826]
[1729551930175,0.2626305,67634.0,67633.0,0.003826]
[1729551930657,0.2626305,67634.0,67633.0,0.008826]
[1729551933001,0.147954,67634.0,67633.0,0.01499737]
[1729551936916,0.147954,67634.0,67633.0,0.008826]
[1729551937373,0.147954,67634.0,67633.0,0.003826]
[1729551937605,0.147954,67634.0,67633.0,0.000826]
[1729551937825,0.148954,67634.0,67633.0,0.000826]
[1729551938262,0.24293249,67634.0,67633.0,0.000826]
[1729551938485,0.148954,67634.0,67633.0,0.000826]
[1729551939360,0.148954,67634.0,67633.0,0.00699737]
[1729551941152,0.148954,67634.0,67633.0,0.000826]
[1729551944778,0.0011,67634.0,67633.0,0.000826]
[1729551945005,0.0011,67634.0,67633.0,0.0070121]
[1729551945696,0.148954,67634.0,67633.0,0.0070121]
[1729551946561,0.148954,67634.0,67633.0,0.000826]
[1729551946830,0.148954,67634.0,67633.0,0.0070121]
[1729551948837,0.0011,67634.0,67633.0,0.0070121]
[1729551949976,0.002752,67634.0,67633.0,0.0070121]
[1729551954376,0.150606,67634.0,67633.0,0.0070121]
[1729551956423,0.150606,67634.0,67633.0,0.000826]
[1729551957919,0.150606,67634.0,67633.0,0.00706723]
[1729551960017,0.002752,67634.0,67633.0,0.00706723]
[1729551960484,0.002652,67634.0,67633.0,0.27076581]
[1729551961834,0.001652,67634.0,67633.0,0.27076581]
[1729551962085,0.002652,67634.0,67633.0,0.27076581]
[1729551962757,0.003652,67634.0,67633.0,0.27076581]
[1729551962963,0.001652,67634.0,67633.0,0.27076581]
[1729551963190,0.001652,67634.0,67633.0,0.15492323]
[1729551963633,0.001652,67634.0,67633.0,0.15592323]
[1729551973557,0.06770784,67634.0,67633.0,0.15592323]
[1729551978408,0.06780784,67634.0,67633.0,0.00806723]
[1729551979758,0.04580609,67634.0,67633.0,0.00806723]
[1729551979970,0.001752,67634.0,67633.0,0.00806723]
[1729551980197,0.04580326,67634.0,67633.0,0.00806723]
[1729551980413,0.001752,67634.0,67633.0,0.00806723]
[1729551982732,0.06780872,67634.0,67633.0,0.00806723]
[1729551983144,0.06780872,67634.0,67633.0,0.15592323]
[1729551984527,0.06780872,67634.0,67633.0,0.00806723]
[1729551984776,0.001752,67634.0,67633.0,0.00806723]
[1729551985004,0.001752,67634.0,67633.0,0.15592323]
[1729551989275,0.001752,67634.0,67633.0,0.00806723]
[1729551993592,0.149606,67634.0,67633.0,0.00806723]
[1729551993806,0.1943033,67634.0,67633.0,0.00806723]
[1729551994012,0.54176707,67634.0,67633.0,0.00806723]
[1729551994225,0.65839826,67634.0,67633.0,0.001826]
[1729551994447,1.01546282,67634.0,67633.0,0.001826]
[1729551994903,1.01546282,67634.0,67622.0,0.22203473]
[1729551994904,0.005,67624.0,67622.0,0.22203473]
[1729551995162,0.79756697,67624.0,67622.0,0.22203473]
[1729551995370,0.7889847,67624.0,67623.0,0.00677666]
[1729551995590,0.0001,67616.0,67615.0,0.22203473]
[1729551995806,0.26383558,67616.0,67615.0,0.22203473]
[1729551996031,0.42624432,67616.0,67615.0,0.00594966]
[1729551996309,0.148004,67611.0,67610.0,0.000826]
[1729551996530,0.20854601,67611.0,67610.0,0.000826]
[1729551997961,0.06598351,67611.0,67610.0,0.00677566]
[1729551998203,0.21388751,67611.0,67610.0,0.000826]
[1729551998411,0.148004,67611.0,67610.0,0.00677566]
[1729551998625,0.148004,67611.0,67610.0,0.000826]
[1729551998848,0.0001,67611.0,67610.0,0.000826]
[1729551999077,0.148004,67611.0,67610.0,0.00677566]
[1729551999299,0.21414563,67611.0,67610.0,0.00777566]
[1729551999516,0.21214563,67611.0,67610.0,0.00777566]
[1729552000012,0.21414563,67611.0,67610.0,0.00777566]
[1729552000235,0.21414563,67611.0,67610.0,0.00877566]
[1729552001097,0.21214563,67611.0,67610.0,0.00777566]
[1729552001307,0.21414563,67611.0,67610.0,0.00777566]
[1729552001527,0.21414563,67611.0,67610.0,0.00677566]
[1729552001732,0.21214563,67611.0,67610.0,0.00677566]
[1729552001944,0.21414563,67611.0,67610.0,0.00677566]
[1729552002165,0.21414563,67611.0,67610.0,0.00777566]
[1729552002582,0.21414563,67611.0,67610.0,0.00677566]
[1729552002988,0.21414563,67611.0,67610.0,0.00777566]
[1729552006274,0.21414563,67611.0,67610.0,0.001826]
[1729552006743,0.002,67611.0,67610.0,0.001826]
[1729552007199,0.150004,67611.0,67610.0,0.0079059]
[1729552007434,0.150004,67611.0,67610.0,0.001826]
[1729552009312,0.150004,67611.0,67610.0,0.0079059]
[1729552009549,0.2241639,67611.0,67610.0,0.001826]
[1729552010266,0.2241639,67611.0,67610.0,0.0079059]
[1729552010502,0.2241639,67611.0,67610.0,0.00790206]
[1729552010974,0.150004,67611.0,67610.0,0.00790206]
[1729552011438,0.002,67611.0,67610.0,0.00790206]
[1729552011672,0.149904,67611.0,67610.0,0.00790206]
[1729552013130,0.150004,67611.0,67610.0,0.00790206]
[1729552013589,0.150004,67611.0,67610.0,0.001826]
[1729552013825,0.23574806,67611.0,67610.0,0.001826]
[1729552017927,0.148026,67601.0,67600.0,0.22203473]
[1729552018361,0.148026,67601.0,67600.0,0.22811079]
[1729552018577,0.148026,67601.0,67600.0,0.00607606]
[1729552018791,0.23358216,67601.0,67600.0,0.00607606]
[1729552019300,0.23358216,67601.0,67600.0,0.01007606]
[1729552019510,0.23358216,67601.0,67600.0,0.004]
[1729552019729,0.0001,67601.0,67600.0,0.004]
[1729552019943,0.148026,67601.0,67600.0,0.004]
[1729552020154,0.0001,67601.0,67600.0,0.01007606]
[1729552020412,0.148023,67603.0,67600.0,0.004]
[1729552020627,0.295844,67604.0,67600.0,0.01007606]
[1729552020628,0.29584,67604.0,67600.0,0.01007606]
[1729552020848,0.147922,67603.0,67600.0,0.01007606]
[1729552021293,0.147922,67603.0,67600.0,0.01207606]
[1729552021527,0.147922,67603.0,67600.0,0.00807606]
[1729552021757,0.147922,67603.0,67600.0,0.01007606]
[1729552021986,0.147922,67603.0,67600.0,0.00607606]
[1729552022198,0.22780868,67603.0,67600.0,0.00607606]
[1729552022444,0.0001,67603.0,67601.0,0.22203473]
[1729552022681,0.0001,67608.0,67605.0,0.147915]
[1729552022892,0.0001,67605.0,67602.0,0.41169158]
[1729552023160,0.295914,67611.0,67605.0,0.147917]
[1729552023370,0.0001,67607.0,67605.0,0.147917]
[1729552023585,0.147909,67609.0,67605.0,0.147917]
[1729552023809,0.0001,67610.0,67603.0,0.14792]
[1729552023810,0.147911,67608.0,67603.0,0.14792]
[1729552024286,0.147914,67607.0,67603.0,0.14792]
[1729552024525,0.147914,67607.0,67602.0,0.11584258]
[1729552024745,0.002,67603.0,67602.0,0.11584258]
[1729552024967,0.147916,67606.0,67602.0,0.26376658]
[1729552025428,0.147916,67606.0,67602.0,0.11584258]
[1729552025888,0.147916,67606.0,67602.0,0.11684258]
[1729552026106,0.147916,67606.0,67603.0,0.147922]
[1729552026556,0.149916,67606.0,67602.0,0.11584258]
[1729552026794,0.002,67606.0,67602.0,0.11584258]
[1729552027090,0.002,67606.0,67605.0,0.26376058]
[1729552027552,0.002,67606.0,67605.0,0.33956058]
[1729552028226,0.147905,67611.0,67607.0,0.147913]
[1729552028450,0.147905,67611.0,67608.0,0.11584258]
[1729552028898,0.0001,67606.0,67605.0,0.0758]
[1729552029114,0.0021,67606.0,67605.0,0.0758]
[1729552029332,0.0001,67606.0,67605.0,0.0758]
[1729552029789,0.148015,67606.0,67605.0,0.0758]
[1729552030016,0.0001,67606.0,67605.0,0.0758]
[1729552030984,0.1925636,67606.0,67605.0,0.0758]
[1729552031433,0.1945636,67606.0,67605.0,0.0758]
[1729552032355,0.1945636,67606.0,67605.0,0.0768]
[1729552032794,0.1945636,67606.0,67605.0,0.0758]
[1729552033674,0.148026,67601.0,67600.0,0.000827]
[1729552033913,0.148026,67601.0,67600.0,0.22286173]
[1729552034135,0.148026,67601.0,67600.0,0.00692831]
[1729552034583,0.148026,67601.0,67600.0,0.000827]
[1729552035054,0.148026,67601.0,67600.0,0.001827]
[1729552035268,0.27988181,67601.0,67600.0,0.004827]
[1729552036104,0.27988181,67601.0,67600.0,0.000827]
[1729552036335,0.28188181,67601.0,67600.0,0.001827]
[1729552036789,0.27988181,67601.0,67600.0,0.000827]
[1729552037490,0.148026,67601.0,67600.0,0.001827]
[1729552037718,0.33968616,67604.0,67600.0,0.00792831]
[1729552037719,0.0001,67603.0,67600.0,0.00792831]
[1729552037948,0.0001,67603.0,67601.0,0.147925]
[1729552038165,0.0001,67603.0,67601.0,0.15406451]
[1729552038385,0.0001,67603.0,67601.0,0.00613951]
[1729552039535,0.04384216,67602.0,67601.0,0.00613951]
[1729552040248,0.0001,67602.0,67601.0,0.00613951]
[1729552040479,0.06586325,67602.0,67601.0,0.00613951]
[1729552040692,0.21578525,67603.0,67601.0,0.00613951]
[1729552040903,0.21578525,67603.0,67602.0,0.147924]
[1729552040904,0.06776325,67603.0,67602.0,0.147924]
[1729552041140,0.06576325,67604.0,67602.0,0.0788]
[1729552041368,0.06576325,67604.0,67602.0,0.0849274]
[1729552041836,0.06586325,67603.0,67602.0,0.0849274]
[1729552042055,0.0021,67603.0,67602.0,0.0849274]
[1729552042277,0.0001,67603.0,67602.0,0.0849274]
[1729552043022,0.06605888,67603.0,67602.0,0.0849274]
[1729552043239,0.21398088,67603.0,67602.0,0.0849274]
[1729552043477,0.28468872,67603.0,67602.0,0.0849274]
[1729552043942,0.13676672,67603.0,67602.0,0.0849274]
[1729552044406,0.21873206,67603.0,67602.0,0.0849274]
[1729552044871,0.21597786,67603.0,67602.0,0.0849274]
[1729552045339,0.40001653,67603.0,67602.0,0.0788]
[1729552046014,0.40027404,67603.0,67602.0,0.0788]
[1729552046296,0.40027251,67603.0,67602.0,0.0788]
[1729552046519,0.31233372,67603.0,67602.0,0.0788]
[1729552046754,0.50166514,67603.0,67602.0,0.0788]
[1729552046976,0.35374314,67603.0,67602.0,0.0788]
[1729552047212,0.002,67603.0,67602.0,0.0788]
[1729552047434,0.002,67603.0,67602.0,0.08492611]
[1729552047435,0.149922,67603.0,67602.0,0.08492611]
[1729552048814,0.31231213,67603.0,67602.0,0.08492611]
[1729552050420,0.31241213,67603.0,67602.0,0.08492611]
[1729552052312,0.150022,67603.0,67602.0,0.08492611]
[1729552052795,0.31248227,67603.0,67602.0,0.08492611]
[1729552053026,0.31248227,67603.0,67602.0,0.37568315]
[1729552053027,0.002,67603.0,67602.0,0.37568315]
[1729552053254,0.002,67603.0,67602.0,0.48939703]
[1729552053918,0.002,67603.0,67602.0,0.71143176]
[1729552054149,0.04401207,67605.0,67604.0,0.14792]
[1729552054793,0.04401207,67605.0,67604.0,0.15403388]
[1729552055273,0.04401207,67606.0,67605.0,0.147918]
[1729552055714,0.04401207,67606.0,67605.0,0.15403188]
[1729552055948,0.04401207,67607.0,67606.0,0.147915]
[1729552056160,0.04566607,67610.0,67608.0,0.147911]
[1729552056377,0.001654,67610.0,67609.0,0.147909]
[1729552056623,0.001654,67610.0,67609.0,0.15402288]